Cogmind - Beta 12 @@@ ROGUE MODE // 2023.04.06 @ 16:59:08 Player: Inkie Result: Destroyed by as-36697 with Assembled Heavy Rifle Performance ------------- Evolutions (0) 0 Regions Visited (2) 400 Robots Destroyed (10) 50 Value Destroyed (289) 289 Prototype IDs (0) 0 Alien Tech Used (0) 0 Bonus (0) 0 TOTAL SCORE: 739 Bonus ------- None Cogmind --------- Core Integrity 0/250 Matter 300/300 Energy 250/250 System Corruption 0% Temperature Cool (0) Movement Treading (240) Ox1 Location -10/Mines Parts ------- > --- POWER (1) -------- Ion Engine > --- PROPULSION (2) --- Light Treads Light Treads > --- UTILITY (2) ------ High-capacity Storage Unit Improved Light Armor Plating > --- WEAPON (2) ------- Particle Gun Assault Rifle > --- INVENTORY (20) --- Light Ion Engine Light Treads Combat Airjet Combat Airjet Small Storage Unit Huge Storage Unit Launcher Guidance Computer Light Armor Plating Thief Drone Bay Medium Laser Light Assault Rifle Peak State ------------ > --- POWER ------------ Ion Engine > --- PROPULSION ------- Light Treads Light Treads > --- UTILITY ---------- Improved Heat Sink High-capacity Storage Unit > --- WEAPON ----------- Particle Gun Assault Rifle > --- INVENTORY -------- Light Ion Engine Light Treads Combat Airjet Combat Airjet Small Storage Unit Huge Storage Unit Light Armor Plating Thief Drone Bay Medium Laser Light Assault Rifle [Rating: 12] Favorites ----------- Power Ion Engine Engine Ion Engine Propulsion Light Treads Treads Light Treads Utility High-capacity Storage Unit Device Improved Heat Sink Storage High-capacity Storage Unit Protection Improved Light Armor Plating Weapon Assault Rifle Energy Gun EM Pulse Gun Ballistic Gun Assault Rifle Build | -11 -10 -10 ------- Run | Jun Mat Min Slots Evolved . | . . . Power . | . . . Propulsion . | . . . Utility . | . . . Weapon . | . . . Parts Attached 14 | 7 5 2 Power 2 | 2 . . Engine 2 | 2 . . Core . | . . . Reactor . | . . . Propulsion 3 | 2 1 . Treads 3 | 2 1 . Leg . | . . . Wheel . | . . . Hover . | . . . Flight . | . . . Utility 4 | 1 2 1 Device 1 | . 1 . Storage 2 | 1 1 . Processor . | . . . Hackware . | . . . Protection 1 | . . 1 Artifact . | . . . Weapon 5 | 2 2 1 Energy Gun 3 | 2 . 1 Energy Cannon . | . . . Ballistic Gun 2 | . 2 . Ballistic Cannon . | . . . Launcher . | . . . Special Weapon . | . . . Impact Weapon . | . . . Slashing Weapon . | . . . Piercing Weapon . | . . . Special Melee Weapon . | . . . Unidentified Prototypes . | . . . Parts Lost 3 | . 2 1 Power . | . . . Propulsion . | . . . Utility 1 | . . 1 Weapon 2 | . 2 . Highest Loss Streak 2 | . 2 1 To Critical Strikes . | . . . Average Slot Usage (%) 95 | . 93 99 Engine 14 | . 14 14 Treads 28 | . 28 28 Device 9 | . 8 10 Storage 14 | . 14 14 Energy Gun 7 | . 7 8 Ballistic Gun 20 | . 20 19 Naked Turns . | . . . Heaviest Build 53 | 14 49 53 Greatest Support 40 | 40 40 40 Greatest Overweight (x) 1 | . 1 1 Average Overweight (x) . | . . 1 Largest Inventory Capacity 20 | 8 20 20 Average Capacity 15 | 7 15 20 Most Carried 11 | 2 7 11 Average Carried 4 | . 3 8 Final Capacity 20 | 8 20 20 Final Carried 11 | 2 7 11 Class Distribution -------------------- 100% | Mutant Dominant Class ---------------- Mutant | -10/Materials Mutant | -10/Mines Resources | -11 -10 -10 ----------- Run | Jun Mat Min Matter Collected 482 | 150 212 120 Remotely . | . . . Salvage Created 410 | . 254 156 Parts 18 | . 17 1 Haulers Intercepted . | . . . Recyclers Shooed . | . . . Parts Field Recycled . | . . . Retrieved Matter . | . . . Parts Self-Destructed . | . . . Prevented . | . . . Kills | -11 -10 -10 ------- Run | Jun Mat Min Combat Hostiles Destroyed 14 | . 7 7 Guns 13 | . 6 7 AOE 1 | . 1 . Classes Destroyed 4 | . 3 1 Recycler 1 | . 1 . Swarmer 3 | . 3 . Grunt 6 | . 4 2 Assembled 5 | . . 5 Best Kill Streak 4 | . 4 4 Combat Bots Only 4 | . 3 4 Max Kills in Single Turn 1 | . 1 1 Gunslinging . | . . . Exploded 1 | . 1 . Melee . | . . . Uniques/NPCs Destroyed . | . . . Combat | -11 -10 -10 -------- Run | Jun Mat Min Damage Taken 863 | . 454 409 Core 258 | . 116 142 Absorbed by Shields . | . . . Core Remaining (%) 100 | 100 . . Volleys Fired 48 | . 27 21 Largest 2 | . 2 2 Hottest 85 | . 80 85 Shots Fired 95 | . 53 42 Gun 95 | . 53 42 Cannon . | . . . Launcher . | . . . Special . | . . . Kinetic 68 | . 45 23 Thermal 19 | . . 19 Explosive . | . . . Electromagnetic 8 | . 8 . Robot Hit Streak 9 | . 9 8 Robot Miss Streak 4 | . 4 2 Penetration Max . | . . . Secondary Targets 4 | . 3 1 Max Gunslinging Chain 1 | . 1 1 Shots Hit Robots 65 | . 34 31 Core Hits 28 | . 15 13 Critical Kills . | . . . Critical Parts Destroyed . | . . . Critical Strikes 1 | . . 1 Burn 1 | . . 1 Melee Attacks . | . . . Impact . | . . . Slashing . | . . . Piercing . | . . . Sneak Attacks . | . . . Combat Hostiles . | . . . Follow-up Attacks . | . . . Damage Inflicted 1138 | 6 685 447 Guns 884 | . 437 447 Cannons . | . . . Explosions 248 | . 248 . Melee . | . . . Ramming 6 | 6 . . Kinetic 533 | . 336 197 Thermal 331 | . 81 250 Explosive 167 | . 167 . Electromagnetic 101 | . 101 . Impact . | . . . Slashing . | . . . Piercing . | . . . Highest Corruption . | . . . Average Corruption . | . . . Corruption Purged . | . . . Corruption Blocked . | . . . Overload Shots . | . . . Overflow Damage 64 | . 64 . Projectiles . | . . . Explosions 64 | . 64 . Melee . | . . . Knockbacks . | . . . Impact . | . . . Kinetic . | . . . Secondary . | . . . Self-Inflicted Damage 152 | . 152 . Shots 2 | . 2 . Rammed 1 | 1 . . Targets Rammed 1 | 1 . . Kicked . | . . . Crushed . | . . . Highest Temperature 150 | . 114 150 Average Temperature 41 | . 36 45 Received Heat Transfer 318 | . 114 204 Siege Activations . | . . . Robots Corrupted . | . . . Combat Hostiles . | . . . Parts Fried 1 | . 1 . Impact Corruptions . | . . . Robots Melted . | . . . Combat Hostiles . | . . . Parts Melted 1 | . . 1 Heat Transferred 766 | . 100 666 Parts Sabotaged . | . . . Parts Stolen . | . . . Parts Stripped . | . . . Power Chain Reactions 1 | . 1 . Missiles Intercepted . | . . . Alert | -11 -10 -10 ------- Run | Jun Mat Min Peak Influence 164 | . 164 80 Initial . | . . . Average 46 | . 57 32 Maximum Alert Level . | . . . Low Security (%) 100 | 100 100 100 Level 1 . | . . . Level 2 . | . . . Level 3 . | . . . Level 4 . | . . . Level 5 . | . . . High Security . | . . . Max Security . | . . . Squads Dispatched . | . . . Investigation . | . . . Extermination . | . . . Reinforcement . | . . . Assault . | . . . Garrison . | . . . Intercept . | . . . Searches Triggered . | . . . Construction Impeded . | . . . Haulers Reinforced . | . . . Active Scanning Responses . | . . . Cargo Convoy Interrupts . | . . . Stealth | -11 -10 -10 --------- Run | Jun Mat Min Distress Signals 1 | . 1 . Communications Jammed . | . . . Distress Signals . | . . . Times Spotted 31 | . 13 18 Peak Tracking Total 6 | . 4 6 Tactical Retreats 2 | . 1 1 Traps | -11 -10 -10 ------- Run | Jun Mat Min Traps Triggered . | . . . Indirectly . | . . . Trap Hack Attempts . | . . . Triggered . | . . . Disarmed . | . . . Reprogrammed . | . . . Reused . | . . . Traps Extracted . | . . . Installed . | . . . Triggered . | . . . Machines | -11 -10 -10 ---------- Run | Jun Mat Min Machines Disabled 2 | . 1 1 Max in Single Turn 1 | . 1 1 Machines Repaired . | . . . Machines Sabotaged . | . . . Overloaded Fab Kills . | . . . Hacking | -11 -10 -10 --------- Run | Jun Mat Min Machines Accessed 4 | . 3 1 Terminals 3 | . 3 . Fabricators . | . . . Repair Stations . | . . . Recycling Units . | . . . Scanalyzers . | . . . Garrison Access . | . . . Total Hacks 10 | . 9 1 Successful 5 | . 4 1 Failed 5 | . 5 . Catastrophic 2 | . 2 . Database Lockouts . | . . . Manual 9 | . 9 . Terminals 9 | . 9 . Fabricators . | . . . Repair Stations . | . . . Recycling Units . | . . . Scanalyzers . | . . . Garrison Access . | . . . Terminal Hacks 4 | . 3 1 Part Schematic 1 | . 1 . Robot Analysis 1 | . 1 . Open Door 1 | . . 1 Branch Access Points 1 | . 1 . Fabricator Hacks . | . . . Repair Station Hacks . | . . . Recycling Unit Hacks . | . . . Scanalyzer . | . . . Garrison Access Hacks . | . . . Unauthorized Hacks 1 | . 1 . Terminals 1 | . 1 . Operators 1 | . 1 . Fabricators . | . . . Repair Stations . | . . . Recycling Units . | . . . Scanalyzers . | . . . Garrison Access . | . . . Data Cores Recovered . | . . . Used . | . . . Hacking Detections 3 | . 3 . Full Trace Events . | . . . Feedback Events . | . . . Feedback Blocked . | . . . Robot Schematics Acquired . | . . . Robots Built . | . . . Authchips . | . . . Time . | . . . Total Robot Build Rating . | . . . Part Schematics Acquired 1 | . 1 . Parts Built . | . . . Authchips . | . . . Time . | . . . Total Part Build Rating . | . . . Parts Repaired . | . . . Time . | . . . Parts Recycled . | . . . Recycled Matter . | . . . Retrieved Matter . | . . . Retrieved Components . | . . . Parts Scanalyzed . | . . . Part Schematics Acquired . | . . . Parts Damaged . | . . . Bothacking | -11 -10 -10 ------------ Run | Jun Mat Min Used RIF Installer . | . . . Robots Hacked . | . . . Non-combat . | . . . Combat . | . . . Robot Hacks Applied . | . . . Relay Couplers Released . | . . . Fabnet Peak Effective % . | . . . Robots Rewired . | . . . Allies Hacked . | . . . Hacks Repelled . | . . . Allies | -11 -10 -10 -------- Run | Jun Mat Min Total Allies . | . . . Largest Group . | . . . Highest-Rated Group . | . . . Highest-Rated Ally . | . . . Total Orders . | . . . Ally Attacks . | . . . Total Damage . | . . . Kills . | . . . Allies Corrupted . | . . . Allies Melted . | . . . Intel | -11 -10 -10 ------- Run | Jun Mat Min Robot Analysis Total 1 | . 1 . Derelict Logs Recovered . | . . . Drone Launches . | . . . Drone Recoveries . | . . . Exploration | -11 -10 -10 ------------- Run | Jun Mat Min Turns Passed 1235 | 88 815 332 Spaces Moved 444 | 51 286 107 Core 5 | 5 . . Treads 439 | 46 286 107 Legs . | . . . Wheels . | . . . Hover . | . . . Flight . | . . . Fastest Speed 50 | 50 160 240 Average Speed 212 | 149 212 240 Slowest Speed 240 | 160 240 240 Overloaded Moves . | . . . Propulsion Burnouts . | . . . Robots Hopped . | . . . Cave-ins Triggered . | . . . Exploration Rate (%) 22 | 4 40 23 Regions Visited 2 Branch Regions 1 Pre-discovered Areas . | . . . Known Exits Taken 1 | . 1 . Unknown Exits Taken 1 | 1 . . Scrap Searched 1 | . . 1 Spaces Dug . | . . . Terrain Destroyed 34 | . 34 . Melee . | . . . Projectile . | . . . AOE 34 | . 34 . Terrain Rammed . | . . . Walls Destroyed . | . . . Machines Disabled . | . . . Actions | -11 -10 -10 --------- Run | Jun Mat Min Total 643 | 59 443 141 Wait 129 | . 122 7 Move 442 | 50 285 107 Hop . | . . . Pick Up 9 | 1 4 4 Fast Attach 9 | 6 2 1 Attach 1 | . 1 . Detach . | . . . Swap 4 | 1 2 1 Drop . | . . . Fire 48 | . 27 21 Melee . | . . . Ram . | . . . Kick . | . . . Crush 1 | 1 . . Escape Stasis . | . . . Rewire . | . . . Trap . | . . . Miscellaneous . | . . . Route ------- -11/Junkyard -10/Materials (discovered 2 exits: *Min x2) -10/Mines History --------- Turn | Location | Event 9 | -11/Junkyard | Discovered new exit (range 15) 89 | -11/Junkyard | Entered Materials 333 | -10/Materials | Build established: Mutant 659 | -10/Materials | Identified exit to Mines 904 | -10/Materials | Entered Mines 1040 | -10/Mines | Core integrity fell below 50% 1076 | -10/Mines | Found the Drone Emporium 1081 | -10/Mines | Assembled infested the area 1094 | -10/Mines | Found Prototype Device 1149 | -10/Mines | Core integrity fell below 20% 1236 | -10/Mines | Destroyed by as-36697 with Assembled Heavy Rifle Last Messages --------------- 01141_ Y5-EYX(g) shuts down. 01141_ Acquired Launcher Guidance Computer. 01142_ as-55428 suffers critical hit (Burn). 01145_ Y5-EYX(g) system corrupted by crushing effect. 01146_ Y5-EYX(g) system terminally corrupted. 01148_ as-55428 destroyed. 01157_ as-76622 destroyed. 01158_ Acquired 17 matter. 01158_ Imp. Heat Sink destroyed. 01163_ as-01102 destroyed. 01163_ Switching to secondary target: as-75562. 01166_ as-75562 destroyed. 01169_ Acquired 9 matter. 01174_ Acquired Imp. Light Armor Plating. 01176_ Acquired 10 matter. 01180_ The unstable cave ceiling collapses. 01187_ Acquired 3 matter. 01189_ as-58129 destroyed. 01190_ Acquired 3 matter. 01190_ The unstable cave ceiling collapses. Map ----- +----------------------------------------------------+ | ?????????????????????????????????????????????????? | | ?????????????????????????????????????????????????? | | ?????????????????????????????????????????????????? | | ?????????????????????????????????????????????????? | | ?????????????????????????????????????????????????? | | ?????????????????????????????????????????????????? | | ?????????????????????????????????????????????????? | | ?????????????????????????????????????????????????? | | ????????????????????????? ??????????????????????? | | ????????????????????????? ??????????????????????? | | ?????????? ?????????????#%%??????????????????????? | | ?????????? ?????????????#!=??????????????????????? | | ?????????? ?????????????# *#?????????#####???????? | | ?????????? ?????????????#a #????????? ???????? | | ?????????? ?????????????#a #???????? ?????????? | | ?????????? ?????????????#%!#??###??? ??????????? | | ?????????? ?????????????=!!#?## #### ???????????? | | ?????????# #????????????#%*### # ##???????????? | | ?????????# #????????????#|!##" ####????????? | | ?????????# ????????????# ## % # ###### ?? | | ?????????# #????????????# ### # ? | | ?????????# #????????????# ### % ## ### ??? | | ?????????# #????????????# %% X% % # #???????? | | ?????????# #????????????# % % #???????? | | ########## ############## # ##???????? | | %@ ## #????????? | | ########################## ####????????? | | ????????????????????????# ###??????????? | | ??????????????????????? ##????????????? | | ?????????????????????# ####?????????????? | | ?????????????????????# ##????????????????? | | ?????????????????????## #####?????????????????? | | ??????????????????????## #??????????????????????? | | ???????????????????????###???????????????????????? | | ?????????????????????????????????????????????????? | | ?????????????????????????????????????????????????? | | | | | | | | | | | | | | | | | | | | | | | | | | | | | +----------------------------------------------------+ Best States ------------- Heat Dissipation 39 Energy Generation 10 Energy Capacity 250 Matter Stores 300 Matter Capacity 300 Sight Range 16 Terrain Scan Density 10 Armor Coverage 150 Evasion (%) 40 Recoil Reduction 2 Item Schematics ----------------- Huge Storage Unit | -10/Materials | Hacked Robot Schematics ------------------ None Fabricated ------------ Nothing Alien Tech Used ----------------- None Achievements -------------- None Challenges ------------ None Game ------ Seed FireEnhancedDerivative Manual? 0 Play Time 00:07:22 Cumulative 435.9 hours Start 2023.04.06 @ 16:53:19 End 2023.04.06 @ 16:59:08 Sessions 1 Manual Loads 0 Difficulty Rogue Special Mode None Game No. 476 Rogue 467 Adventurer 8 Explorer 1 Win Type - Total 7 Types 4/1/2/0/0/0/0/0/0 Lore% 79 Gallery% 90 Achievement% 71 Wizard Run 0 Options --------- ASCII 0 Keyboard 0 Movement Numpad Keybinds 1 Fullscreen 2 Font 18/Terminus Map View 76x50 Tactical HUD 1 Map Filters NONE Filters NONE Steam 1 RUN: e2665ef3-534c-484d-a4bf-eda5a335e39f